fUST/lending_fUST_20240116
["ID","MTS","AMOUNT","RATE_DAILY","PERIOD"]
[311689183,1705336231986,-166.666666,0.00026501,2]
[311689186,1705336231995,-289.77163343,0.00027,2]
[311689189,1705336232003,-461.06432413,0.00027,2]
[311689192,1705336232012,-6112.26,0.00027107,3]
[311689195,1705336232021,-1259.40069592,0.00027116,2]
[311689197,1705336232030,-9132.62184048,0.00027117,2]
[311689199,1705336232038,-166.666666,0.00027153,2]
[311689201,1705336232047,-364.55519617,0.00027275,2]
[311689203,1705336232056,-242.45791644,0.00027275,2]
[311689205,1705336232065,-268.91838894,0.00027275,2]
[311689207,1705336232074,-608.86289516,0.00027275,2]
[311689208,1705336232082,-302.62176596,0.00027276,2]
[311689209,1705336232091,-5625.83086011,0.00027276,2]
[311689210,1705336232100,-1112.59905219,0.00027277,2]
[311689211,1705336232108,-6514.35345844,0.00027277,2]
[311689212,1705336232117,-200.0,0.00027355,15]
[311689213,1705336232125,-13333.35456029,0.00027398,2]
[311689214,1705336232136,-624.52907289,0.00027398,2]
[311689215,1705336232144,-1985.33976035,0.00027399,2]
[311689216,1705336232153,-10135.33451069,0.000274,2]
[311689217,1705336232162,-2323.72834329,0.00028036,2]
[311689218,1705336232170,-153.0,0.00028493,2]
[311689219,1705336232179,-198.8577961,0.00028493,2]
[311689220,1705336232188,-201.6787684,0.00028493,2]
[311689221,1705336232196,-153.0,0.00028493,2]
[311689222,1705336232206,-153.0,0.00028493,2]
[311689223,1705336232215,-153.0,0.00028578,2]
[311689224,1705336232224,-198.8577961,0.00028578,2]
[311689225,1705336232233,-198.8577961,0.00028578,2]
[311689226,1705336232242,-155.11633725,0.00029,2]
[311689227,1705336232250,-252.83133483,0.00029313,2]
[311689228,1705336232259,-153.0,0.00029315,2]
[311689229,1705336232268,-153.0,0.00029315,2]
[311689230,1705336232277,-205.1344058,0.00029315,2]
[311689231,1705336232287,-153.0,0.00029378,2]
[311689233,1705336232296,-198.8577961,0.00029378,2]
[311689235,1705336232305,-302.39624993,0.00029399,2]
[311689237,1705336232313,-310.0,0.00029684,2]
[311689239,1705336232322,-244.69170187,0.00029936,2]
[311689241,1705336232332,-155.0,0.0003,2]
[311689243,1705336232340,-465.07086778,0.0003,4]
[311689245,1705336232349,-297.8809135,0.0003,4]
[311689247,1705336232358,-155.0,0.0003,4]
[311689249,1705336232366,-689.42492833,0.0003,4]
[311689251,1705336232375,-642.13204501,0.0003,4]
[311689253,1705336232384,-368.63202806,0.0003,5]
[311689255,1705336232392,-213.0,0.0003,2]
[311689257,1705336232401,-1704.08426279,0.00030005,4]
[311689259,1705336232410,-244.69170186,0.00030029,2]
[311689261,1705336232419,-732.86877943,0.00030036,3]
[311689263,1705336232428,-85495.91558687,0.00030036,2]
[311689289,1705336233137,-12000.0,0.00024061,2]
[311689290,1705336233308,-12000.0,0.00024061,2]
[311689291,1705336233339,-900.0,0.00024061,2]
[311689304,1705336237858,-145225.89007113,0.00030036,2]
[311689305,1705336237868,-32768.13522764,0.00030036,3]
[311689306,1705336237877,-280.0,0.00030091,15]
[311689307,1705336237886,-244.69170186,0.00030122,2]
[311689308,1705336237895,-2135.09360923,0.00030134,4]
[311689309,1705336237903,-161.05379631,0.00030134,4]
[311689310,1705336237912,-316.05741527,0.00030134,4]
[311689311,1705336237921,-360.80127126,0.00030134,2]
[311689312,1705336237931,-155.15209166,0.00030134,4]
[311689313,1705336237940,-326.67061456,0.00030134,4]
[311689314,1705336237950,-158.96348653,0.00030134,4]
[311689315,1705336237959,-155.73414115,0.00030134,4]
[311689316,1705336237967,-2402.38282111,0.00030135,4]
[311689318,1705336237977,-155.0310031,0.00030135,2]
[311689319,1705336237986,-350.93054121,0.00030135,2]
[311689321,1705336237995,-233.59829626,0.00030135,2]
[311689323,1705336238004,-282.83454941,0.00030135,3]
[311689324,1705336238013,-10023.05464007,0.00030135,4]
[311689326,1705336238022,-1384.26789293,0.00030135,3]
[311689327,1705336238031,-298.281992,0.00030136,2]
[311689328,1705336238040,-298.281992,0.00030136,2]
[311689329,1705336238049,-1285.702579,0.00030136,2]
[311689330,1705336238058,-1285.702579,0.00030136,2]
[311689331,1705336238067,-151.0,0.00030136,2]
[311689332,1705336238077,-500.0,0.00030136,2]
[311689333,1705336238086,-502.37082528,0.00030136,2]
[311689334,1705336238095,-500.0,0.00030136,2]
[311689335,1705336238103,-500.0,0.00030136,2]
[311689336,1705336238113,-500.23364505,0.00030136,2]
[311689337,1705336238121,-500.25080538,0.00030136,2]
[311689338,1705336238131,-500.0,0.00030136,2]
[311689339,1705336238139,-500.0,0.00030136,2]
[311689340,1705336238148,-500.0,0.00030136,2]
[311689341,1705336238157,-500.0,0.00030136,2]
[311689342,1705336238166,-500.0,0.00030136,2]
[311689343,1705336238175,-355.51433788,0.00030136,2]
[311689344,1705336238184,-611.17086737,0.00030136,2]
[311689345,1705336238192,-500.0,0.00030136,2]
[311689346,1705336238201,-500.0,0.00030136,2]
[311689347,1705336238210,-500.0,0.00030136,2]
[311689348,1705336238218,-220.10757658,0.00030136,2]
[311689349,1705336238227,-500.0,0.00030136,2]
[311689350,1705336238236,-500.0,0.00030136,2]
[311689351,1705336238245,-500.88114672,0.00030136,2]
[311689352,1705336238254,-500.0,0.00030136,2]
[311689353,1705336238263,-500.0,0.00030136,2]
[311689354,1705336238272,-500.0,0.00030136,2]
[311689355,1705336238281,-572.92806522,0.00030136,2]
[311689356,1705336238291,-602.05912595,0.00030136,2]
[311689357,1705336238301,-168.98875141,0.00030136,2]
[311689358,1705336238310,-500.0,0.00030136,2]
[311689359,1705336238319,-502.86947802,0.00030136,2]
[311689360,1705336238328,-500.0,0.00030136,2]
[311689361,1705336238337,-500.0,0.00030136,2]
[311689362,1705336238346,-232.9672703,0.00030136,2]
[311689363,1705336238355,-163.18093818,0.00030136,2]
[311689364,1705336238364,-500.0,0.00030136,2]
[311689365,1705336238373,-500.0,0.00030136,2]
[311689366,1705336238382,-500.0,0.00030136,2]
[311689367,1705336238392,-170.50663149,0.00030136,2]
[311689368,1705336238401,-500.0,0.00030136,2]
[311689369,1705336238410,-500.0,0.00030136,2]
[311689370,1705336238419,-503.63526801,0.00030136,2]
[311689371,1705336238429,-503.2198619,0.00030136,2]
[311689372,1705336238439,-500.0,0.00030136,2]
[311689373,1705336238448,-500.0,0.00030136,2]
[311689374,1705336238457,-414.80633094,0.00030136,2]
[311689375,1705336238466,-699.83,0.00030136,2]
[311689376,1705336238476,-500.0,0.00030136,2]
[311689377,1705336238486,-500.0,0.00030136,2]
[311689378,1705336238495,-501.81469596,0.00030136,2]
[311689379,1705336238505,-382.8771943,0.00030136,2]
[311689380,1705336238515,-500.0,0.00030136,2]
[311689381,1705336238525,-500.0,0.00030136,10]
[311689382,1705336238535,-500.0,0.00030136,2]
[311689383,1705336238544,-500.0,0.00030136,2]
[311689384,1705336238553,-844.56,0.00030136,2]
[311689385,1705336238563,-491.66261794,0.00030136,2]
[311689386,1705336238572,-1088.73,0.00030136,2]
[311689387,1705336238582,-504.46218806,0.00030136,2]
[311689388,1705336238592,-500.0,0.00030136,2]
[311689389,1705336238602,-500.0,0.00030136,2]
[311689390,1705336238611,-500.0,0.00030136,2]
[311689391,1705336238620,-500.0,0.00030136,2]
[311689392,1705336238630,-500.0,0.00030136,2]
[311689393,1705336238639,-500.0,0.00030136,2]
[311689394,1705336238648,-502.20560869,0.00030136,2]
[311689395,1705336238657,-500.0,0.00030136,2]
[311689396,1705336238666,-500.72638091,0.00030136,2]
[311689397,1705336238675,-231.41577628,0.00030136,2]
[311689398,1705336238684,-500.0,0.00030136,2]
[311689399,1705336238693,-501.32112108,0.00030136,2]
[311689400,1705336238703,-500.0,0.00030136,2]
[311689401,1705336238712,-301.26514521,0.00030136,2]
[311689402,1705336238721,-500.0,0.00030136,2]
[311689403,1705336238730,-501.13132414,0.00030136,2]
[311689404,1705336238740,-500.0,0.00030136,2]
[311689405,1705336238749,-567.53245739,0.00030136,2]
[311689406,1705336238841,-301.6619477,0.00030136,2]
[311689407,1705336238851,-220.0,0.00030136,2]
[311689408,1705336238861,-500.0,0.00030136,2]
[311689409,1705336238871,-202.68601616,0.00030136,2]
[311689410,1705336238880,-401.60196883,0.00030136,2]
[311689411,1705336238890,-500.0,0.00030136,2]
[311689412,1705336238899,-429.10569862,0.00030136,2]
[311689413,1705336238908,-155.42991444,0.00030136,2]
[311689414,1705336238918,-500.0,0.00030136,2]
[311689415,1705336238927,-500.0,0.00030136,2]
[311689416,1705336238937,-500.0,0.00030136,2]
[311689417,1705336238946,-501.2924132,0.00030136,2]
[311689418,1705336238956,-500.0,0.00030136,2]
[311689419,1705336238965,-227.58827317,0.00030136,2]
[311689420,1705336238975,-510.37006199,0.00030136,2]
[311689421,1705336238985,-500.0,0.00030136,2]
[311689422,1705336238994,-658.57,0.00030136,2]
[311689423,1705336239005,-500.0,0.00030136,2]
[311689424,1705336239014,-1625.96081525,0.00030136,2]
[311689425,1705336239023,-500.0,0.00030136,2]
[311689426,1705336239032,-500.0,0.00030136,2]
[311689427,1705336239042,-500.0,0.00030136,2]
[311689428,1705336239051,-500.0,0.00030136,2]
[311689429,1705336239060,-500.0,0.00030136,2]
[311689430,1705336239068,-500.0,0.00030136,2]
[311689431,1705336239077,-500.0,0.00030136,2]
[311689432,1705336239086,-500.0,0.00030136,2]
[311689433,1705336239096,-479.34081517,0.00030136,2]
[311689434,1705336239105,-500.0,0.00030136,2]
[311689435,1705336239114,-500.0,0.00030136,2]
[311689436,1705336239123,-500.0,0.00030136,2]
[311689437,1705336239134,-500.0,0.00030136,2]
[311689438,1705336239143,-229.10235383,0.00030136,2]
[311689439,1705336239152,-500.0,0.00030136,2]
[311689440,1705336239162,-500.0,0.00030136,2]
[311689441,1705336239171,-500.0,0.00030136,2]
[311689442,1705336239180,-500.0,0.00030136,2]
[311689443,1705336239189,-500.95051049,0.00030136,2]
[311689444,1705336239198,-502.40752343,0.00030136,2]
[311689445,1705336239208,-552.84023923,0.00030136,2]
[311689446,1705336239217,-500.0,0.00030136,2]
[311689447,1705336239226,-500.60332259,0.00030136,2]
[311689448,1705336239236,-509.56210125,0.00030136,2]
[311689449,1705336239245,-256.92126022,0.00030136,2]
[311689450,1705336239254,-500.0,0.00030136,2]
[311689451,1705336239263,-500.0,0.00030136,2]
[311689452,1705336239273,-500.0,0.00030136,2]
[311689453,1705336239281,-500.0,0.00030136,2]
[311689454,1705336239290,-500.0,0.00030136,2]
[311689455,1705336239300,-500.0,0.00030136,2]
[311689456,1705336239309,-500.0,0.00030136,2]
[311689457,1705336239319,-500.0,0.00030136,2]
[311689458,1705336239328,-500.0,0.00030136,2]
[311689459,1705336239337,-500.0,0.00030136,2]
[311689460,1705336239346,-427.61481384,0.00030136,2]
[311689461,1705336239355,-500.0,0.00030136,2]
[311689462,1705336239364,-500.0,0.00030136,2]
[311689463,1705336239374,-500.0,0.00030136,2]
[311689464,1705336239383,-1892.58,0.00030136,2]
[311689465,1705336239392,-263.46749869,0.00030136,2]
[311689466,1705336239401,-500.0,0.00030136,2]
[311689467,1705336239410,-500.0,0.00030136,2]
[311689468,1705336239420,-531.48250148,0.00030136,2]
[311689469,1705336239429,-500.0,0.00030136,2]
[311689470,1705336239438,-500.0,0.00030136,2]
[311689471,1705336239447,-157.72893197,0.00030136,2]
[311689472,1705336239456,-500.0,0.00030136,2]
[311689473,1705336239465,-510.86527479,0.00030136,2]
[311689474,1705336239475,-513.83673442,0.00030136,2]
[311689475,1705336239484,-500.0,0.00030136,2]
[311689476,1705336239493,-500.0,0.00030136,2]
[311689477,1705336239502,-590.48,0.00030136,2]
[311689478,1705336239511,-578.86,0.00030136,2]
[311689479,1705336239521,-540.98,0.00030136,2]
[311689480,1705336239530,-504.42523634,0.00030136,2]
[311689481,1705336239539,-500.0,0.00030136,2]
[311689482,1705336239548,-500.0,0.00030136,2]
[311689483,1705336239558,-1000.0,0.00030136,2]
[311689484,1705336239567,-509.18359272,0.00030136,2]
[311689485,1705336239577,-500.0,0.00030136,2]
[311689486,1705336239586,-500.0,0.00030136,2]
[311689487,1705336239596,-500.0,0.00030136,2]
[311689488,1705336239605,-500.0,0.00030136,2]
[311689489,1705336239614,-500.0,0.00030136,2]
[311689490,1705336239624,-502.42678744,0.00030136,2]
[311689491,1705336239633,-500.0,0.00030136,2]
[311689492,1705336239642,-488.22852689,0.00030136,2]
[311689493,1705336239652,-523.319813,0.00030136,2]
[311689494,1705336239663,-500.0,0.00030136,2]
[311689495,1705336239674,-155.68386071,0.00030136,2]
[311689496,1705336239683,-500.0,0.00030136,2]
[311689497,1705336239693,-500.0,0.00030136,2]
[311689498,1705336239702,-500.0,0.00030136,2]
[311689499,1705336239711,-502.43224141,0.00030136,2]
[311689500,1705336239720,-537.38332628,0.00030136,2]
[311689501,1705336239730,-500.0,0.00030136,2]
[311689502,1705336239740,-500.0,0.00030136,2]
[311689503,1705336239751,-945.65,0.00030136,2]
[311689504,1705336239760,-500.0,0.00030136,2]
[311689505,1705336239770,-1000.0,0.00030136,2]
[311689506,1705336239779,-500.0,0.00030136,2]
[311689507,1705336239789,-500.0,0.00030136,2]
[311689508,1705336239798,-500.0,0.00030136,2]
[311689509,1705336239808,-500.0,0.00030136,2]
[311689510,1705336239817,-500.0,0.00030136,2]
[311689511,1705336239827,-500.0,0.00030136,2]
[311689512,1705336239836,-213.340984,0.00030136,2]
[311689513,1705336239845,-225.68863058,0.00030136,2]
[311689514,1705336239854,-503.09155982,0.00030136,2]
[311689515,1705336239864,-200.33733336,0.00030136,2]
[311689516,1705336239873,-500.39204374,0.00030136,2]
[311689517,1705336239881,-500.0,0.00030136,2]
[311689518,1705336239891,-337.83766465,0.00030136,2]
[311689519,1705336239901,-500.0,0.00030136,2]
[311689520,1705336239911,-500.0,0.00030136,2]
[311689521,1705336239920,-500.0,0.00030136,2]
[311689522,1705336239929,-501.28101026,0.00030136,2]
[311689523,1705336239938,-501.11966255,0.00030136,2]
[311689524,1705336239947,-500.0,0.00030136,2]
[311689525,1705336239956,-500.0,0.00030136,2]
[311689527,1705336239964,-500.0,0.00030136,2]
[311689529,1705336239973,-500.0,0.00030136,2]
[311689530,1705336239983,-500.0,0.00030136,2]
[311689531,1705336239993,-500.0,0.00030136,2]
[311689532,1705336240002,-500.0,0.00030136,2]
[311689533,1705336240012,-500.0,0.00030136,2]
[311689534,1705336240021,-501.20711397,0.00030136,2]
[311689535,1705336240031,-500.0,0.00030136,2]
[311689536,1705336240040,-500.0,0.00030136,2]
[311689537,1705336240049,-500.0,0.00030136,2]
[311689538,1705336240058,-500.0,0.00030136,2]
[311689539,1705336240067,-500.0,0.00030136,2]
[311689541,1705336240076,-500.0,0.00030136,2]
[311689543,1705336240085,-500.0,0.00030136,2]
[311689544,1705336240094,-500.0,0.00030136,2]
[311689545,1705336240105,-500.0,0.00030136,2]
[311689546,1705336240114,-1135.34,0.00030136,2]
[311689547,1705336240123,-500.0,0.00030136,2]
[311689549,1705336240132,-1000.0,0.00030136,2]
[311689551,1705336240142,-552.1,0.00030136,2]
[311689552,1705336240151,-500.0,0.00030136,2]
[311689553,1705336240160,-500.0,0.00030136,2]
[311689554,1705336240170,-500.0,0.00030136,2]
[311689555,1705336240180,-500.0,0.00030136,2]
[311689556,1705336240189,-502.677558,0.00030136,2]
[311689557,1705336240199,-500.0,0.00030136,2]
[311689558,1705336240208,-531.32900075,0.00030136,2]
[311689559,1705336240217,-640.00492677,0.00030136,2]
[311689560,1705336240226,-374.146509,0.00030136,2]
[311689561,1705336240236,-515.47059416,0.00030136,2]
[311689562,1705336240247,-454.68388981,0.00030136,2]
[311689563,1705336240256,-500.0,0.00030136,2]
[311689564,1705336240266,-500.0,0.00030136,2]
[311689565,1705336240276,-627.74839216,0.00030136,2]
[311689566,1705336240286,-500.0,0.00030136,2]
[311689567,1705336240295,-500.0,0.00030136,2]
[311689568,1705336240305,-500.0,0.00030136,2]
[311689569,1705336240314,-500.0,0.00030136,2]
[311689570,1705336240323,-513.20667322,0.00030136,2]
[311689571,1705336240332,-221.1644569,0.00030136,2]
[311689572,1705336240342,-833.3,0.00030136,2]
[311689573,1705336240351,-500.0,0.00030136,2]
[311689574,1705336240360,-587.12,0.00030136,2]
[311689575,1705336240370,-500.0,0.00030136,2]
[311689576,1705336240379,-500.0,0.00030136,2]
[311689577,1705336240388,-627.39276305,0.00030136,2]
[311689578,1705336240397,-500.0,0.00030136,2]
[311689579,1705336240406,-500.0,0.00030136,2]
[311689580,1705336240415,-500.0,0.00030136,2]
[311689581,1705336240425,-500.0,0.00030136,2]
[311689582,1705336240435,-10000.0,0.00030136,10]
[311689583,1705336240444,-500.0,0.00030136,2]
[311689584,1705336240454,-500.0,0.00030136,2]
[311689585,1705336240463,-500.0,0.00030136,2]
[311689586,1705336240473,-623.09530042,0.00030136,2]
[311689587,1705336240483,-500.0,0.00030136,2]
[311689588,1705336240494,-500.0,0.00030136,2]
[311689589,1705336240504,-461.17843288,0.00030136,2]
[311689590,1705336240514,-517.22036158,0.00030136,2]
[311689591,1705336240523,-1000.0,0.00030136,5]
[311689592,1705336240531,-500.0,0.00030136,2]
[311689593,1705336240541,-500.0,0.00030136,2]
[311689594,1705336240550,-540.07,0.00030136,2]
[311689595,1705336240559,-500.0,0.00030136,2]
[311689596,1705336240568,-500.0,0.00030136,2]
[311689597,1705336240577,-500.0,0.00030136,2]
[311689598,1705336240587,-500.0,0.00030136,2]
[311689599,1705336240669,-500.0,0.00030136,2]
[311689601,1705336240680,-500.0,0.00030136,2]
[311689603,1705336240690,-503.84730976,0.00030136,2]
[311689606,1705336240700,-500.0,0.00030136,2]
[311689607,1705336240710,-500.0,0.00030136,2]
[311689610,1705336240720,-801.26,0.00030136,2]
[311689611,1705336240729,-500.0,0.00030136,2]
[311689613,1705336240740,-500.0,0.00030136,2]
[311689615,1705336240750,-500.0,0.00030136,2]
[311689617,1705336240760,-197.25905233,0.00030136,2]
[311689619,1705336240770,-500.0,0.00030136,2]
[311689621,1705336240779,-500.0,0.00030136,2]
[311689623,1705336240789,-500.0,0.00030136,2]
[311689625,1705336240800,-591.61405178,0.00030136,2]
[311689627,1705336240809,-500.0,0.00030136,2]
[311689629,1705336240818,-500.0,0.00030136,2]
[311689631,1705336240827,-500.0,0.00030136,2]
[311689633,1705336240836,-506.77404664,0.00030136,2]
[311689635,1705336240845,-500.0,0.00030136,2]
[311689637,1705336240855,-500.0,0.00030136,2]
[311689639,1705336240864,-500.0,0.00030136,2]
[311689641,1705336240873,-500.0,0.00030136,2]
[311689643,1705336240882,-500.0,0.00030136,2]
[311689645,1705336240891,-500.0,0.00030136,2]
[311689647,1705336240900,-500.0,0.00030136,2]
[311689649,1705336240910,-500.0,0.00030136,2]
[311689651,1705336240918,-500.0,0.00030136,2]
[311689653,1705336240928,-941.18,0.00030136,2]
[311689655,1705336240937,-500.0,0.00030136,2]
[311689657,1705336240948,-500.0,0.00030136,2]
[311689659,1705336240957,-500.0,0.00030136,2]
[311689661,1705336240967,-761.38,0.00030136,2]
[311689663,1705336240976,-500.0,0.00030136,2]
[311689665,1705336240985,-500.0,0.00030136,2]
[311689667,1705336240995,-641.26847259,0.00030136,2]
[311689669,1705336241004,-502.26651001,0.00030136,2]
[311689671,1705336241015,-500.0,0.00030136,2]
[311689673,1705336241024,-500.0,0.00030136,2]
[311689675,1705336241034,-500.0,0.00030136,2]
[311689676,1705336241043,-500.0,0.00030136,2]
[311689678,1705336241052,-548.52081002,0.00030136,2]
[311689680,1705336241061,-500.0,0.00030136,2]
[311689682,1705336241071,-1080.5,0.00030136,2]
[311689684,1705336241080,-1080.5,0.00030136,2]
[311689686,1705336241089,-5765.99,0.00030136,2]
[311689688,1705336241098,-1080.5,0.00030136,2]
[311689690,1705336241107,-1080.5,0.00030136,2]
[311689692,1705336241116,-1080.5,0.00030136,2]
[311689694,1705336241126,-1080.5,0.00030136,2]
[311689696,1705336241135,-1080.5,0.00030136,2]
[311689698,1705336241144,-500.0,0.00030136,2]
[311689700,1705336241154,-500.85643977,0.00030136,2]
[311689702,1705336241163,-225.18716407,0.00030136,2]
[311689704,1705336241172,-5762.21,0.00030136,2]
[311689706,1705336241182,-500.69084539,0.00030136,2]
[311689708,1705336241191,-204.80706745,0.00030136,2]
[311689710,1705336241200,-500.0,0.00030136,2]
[311689712,1705336241209,-605.49088144,0.00030136,2]
[311689714,1705336241218,-500.0,0.00030136,2]
[311689716,1705336241228,-500.0,0.00030136,2]
[311689718,1705336241238,-500.0,0.00030136,2]
[311689720,1705336241247,-945.13,0.00030136,2]
[311689722,1705336241256,-356.58383934,0.00030136,2]
[311689724,1705336241266,-500.0,0.00030136,2]
[311689726,1705336241275,-500.0,0.00030136,2]
[311689728,1705336241285,-500.0,0.00030136,2]
[311689730,1705336241294,-500.0,0.00030136,2]
[311689732,1705336241303,-500.0,0.00030136,2]
[311689734,1705336241313,-500.0,0.00030136,2]
[311689736,1705336241323,-500.0,0.00030136,2]
[311689738,1705336241332,-500.0,0.00030136,2]
[311689740,1705336241342,-500.0,0.00030136,2]
[311689742,1705336241352,-500.0,0.00030136,2]
[311689744,1705336241361,-500.0,0.00030136,2]
[311689746,1705336241370,-500.0,0.00030136,2]
[311689748,1705336241379,-2366.38,0.00030136,2]
[311689750,1705336241388,-168.08126236,0.00030136,2]
[311689752,1705336241397,-500.0,0.00030136,2]
[311689754,1705336241406,-1068.31,0.00030136,2]
[311689756,1705336241415,-508.07283932,0.00030136,2]
[311689758,1705336241425,-500.0,0.00030136,2]
[311689760,1705336241434,-500.0,0.00030136,2]
[311689762,1705336241443,-254.4993865,0.00030136,2]
[311689764,1705336241453,-500.0,0.00030136,2]
[311689766,1705336241462,-500.0,0.00030136,2]
[311689768,1705336241472,-500.0,0.00030136,2]
[311689770,1705336241481,-500.0,0.00030136,2]
[311689772,1705336241492,-500.0,0.00030136,2]
[311689774,1705336241501,-500.0,0.00030136,2]
[311689776,1705336241511,-500.0,0.00030136,2]
[311689778,1705336241521,-500.0,0.00030136,2]
[311689780,1705336241531,-534.63,0.00030136,2]
[311689782,1705336241540,-500.0,0.00030136,2]
[311689784,1705336241550,-500.0,0.00030136,2]
[311689786,1705336241559,-253.24117854,0.00030136,2]
[311689788,1705336241567,-500.0,0.00030136,2]
[311689790,1705336241576,-503.76042726,0.00030136,2]
[311689792,1705336241586,-500.0,0.00030136,2]
[311689794,1705336241595,-2479.45,0.00030136,2]
[311689796,1705336241604,-500.0,0.00030136,2]
[311689798,1705336241613,-506.32586647,0.00030136,2]
[311689800,1705336241624,-500.0,0.00030136,2]
[311689802,1705336241633,-1605.71,0.00030136,2]
[311689804,1705336241642,-500.0,0.00030136,2]
[311689806,1705336241651,-500.0,0.00030136,2]
[311689808,1705336241661,-505.67458463,0.00030136,2]
[311689810,1705336241674,-19992.95,0.00030136,2]
[311689812,1705336241682,-3574.75,0.00030136,2]
[311689814,1705336241691,-505.17466226,0.00030136,2]
[311689816,1705336241700,-500.0,0.00030136,2]
[311689818,1705336241710,-500.0,0.00030136,2]
[311689819,1705336241720,-500.0,0.00030136,2]
[311689821,1705336241730,-500.0,0.00030136,2]
[311689823,1705336241740,-500.0,0.00030136,2]
[311689825,1705336241749,-500.0,0.00030136,2]
[311689827,1705336241759,-500.0,0.00030136,2]
[311689829,1705336241768,-4594.39,0.00030136,2]
[311689831,1705336241778,-500.0,0.00030136,2]
[311689833,1705336241787,-320.69145973,0.00030136,2]
[311689835,1705336241796,-202.46857956,0.00030136,2]
[311689837,1705336241805,-500.0,0.00030136,2]
[311689839,1705336241814,-500.0,0.00030136,2]
[311689841,1705336241822,-500.0,0.00030136,2]
[311689843,1705336241832,-500.0,0.00030136,2]
[311689845,1705336241841,-500.0,0.00030136,2]
[311689847,1705336241850,-11694.91,0.00030136,2]
[311689849,1705336241860,-500.0,0.00030136,2]
[311689851,1705336241870,-500.0,0.00030136,2]
[311689853,1705336241879,-500.0,0.00030136,2]
[311689855,1705336241888,-500.0,0.00030136,2]
[311689857,1705336241898,-518.08,0.00030136,2]
[311689859,1705336241907,-500.0,0.00030136,2]
[311689861,1705336241916,-500.49527847,0.00030136,2]
[311689863,1705336241926,-500.0,0.00030136,2]
[311689865,1705336241934,-150.0,0.00030136,2]
[311689867,1705336241943,-500.0,0.00030136,2]
[311689869,1705336241952,-500.0,0.00030136,2]
[311689871,1705336241962,-500.0,0.00030136,2]
[311689873,1705336241971,-501.97924145,0.00030136,2]
[311689875,1705336241980,-885.37,0.00030136,2]
[311689877,1705336241991,-500.0,0.00030136,2]
[311689879,1705336242000,-500.0,0.00030136,2]
[311689880,1705336242010,-313.9541795,0.00030136,2]
[311689882,1705336242019,-500.0,0.00030136,2]
[311689885,1705336242029,-501.41899524,0.00030136,2]
[311689886,1705336242039,-500.0,0.00030136,2]
[311689888,1705336242048,-500.0,0.00030136,2]
[311689890,1705336242057,-512.17,0.00030136,2]
[311689892,1705336242067,-500.0,0.00030136,2]
[311689894,1705336242076,-500.0,0.00030136,2]
[311689896,1705336242085,-1207.63,0.00030136,2]
[311689898,1705336242095,-3956.74,0.00030136,2]
[311689900,1705336242104,-505.36838094,0.00030136,2]
[311689902,1705336242113,-500.0,0.00030136,2]
[311689904,1705336242122,-502.82129946,0.00030136,2]
[311689906,1705336242131,-437.22900269,0.00030136,2]
[311689908,1705336242140,-500.0,0.00030136,2]
[311689910,1705336242149,-500.0,0.00030136,2]
[311689912,1705336242158,-500.0,0.00030136,2]
[311689914,1705336242167,-502.5187616,0.00030136,2]
[311689916,1705336242177,-500.0,0.00030136,2]